[Event "Early-Titled-Tuesday-Blitz-May-07-2024"]
[Site "Chess.com"]
[Date "2024.05.07"]
[Round "10"]
[White "yonaltimur"]
[Black "campochess"]
[Result "1-0"]
[WhiteElo "2369"]
[BlackElo "2149"]
[TimeControl "180+1"]
[EndTime "9:59:34 PDT"]
[Termination "yonaltimur won by resignation"]

1. e4 {[%clk 0:02:21.2]} 1... c5 {[%clk 0:02:59.2]} 2. Nf3 {[%clk 0:02:19.6]}
2... Nc6 {[%clk 0:02:59.1]} 3. Bb5 {[%clk 0:02:18.8]} 3... e5 {[%clk 0:02:58]}
4. O-O {[%clk 0:02:06.2]} 4... Bd6 {[%clk 0:02:57.5]} 5. c3 {[%clk 0:02:05.9]}
5... Nf6 {[%clk 0:02:56.1]} 6. d4 {[%clk 0:02:05.6]} 6... cxd4 {[%clk 0:02:56]}
7. cxd4 {[%clk 0:02:05.4]} 7... Qc7 {[%clk 0:02:56]} 8. d5 {[%clk 0:02:01.6]}
8... Ne7 {[%clk 0:02:52.8]} 9. Nc3 {[%clk 0:01:59.2]} 9... Bc5 {[%clk
0:02:49.8]} 10. Bg5 {[%clk 0:01:57.5]} 10... a6 {[%clk 0:02:37.6]} 11. Bd3
{[%clk 0:01:51.9]} 11... d6 {[%clk 0:02:20.2]} 12. Rc1 {[%clk 0:01:44.1]} 12...
Bg4 {[%clk 0:02:16.8]} 13. b4 {[%clk 0:01:40.4]} 13... Bxb4 {[%clk 0:01:57.1]}
14. Nb5 {[%clk 0:01:40.1]} 14... Qxc1 {[%clk 0:01:46.5]} 15. Qxc1 {[%clk
0:01:37]} 15... axb5 {[%clk 0:01:46.4]} 16. Bxb5+ {[%clk 0:01:37.9]} 16... Kf8
{[%clk 0:01:37.8]} 17. Bxf6 {[%clk 0:01:37.8]} 17... gxf6 {[%clk 0:01:37.1]} 18.
Qh6+ {[%clk 0:01:35.6]} 18... Kg8 {[%clk 0:01:34.7]} 19. Qxf6 {[%clk 0:01:35.7]}
19... h6 {[%clk 0:01:27.5]} 20. Qxe7 {[%clk 0:01:34.7]} 20... Bxf3 {[%clk
0:01:25.8]} 21. gxf3 {[%clk 0:01:33.9]} 21... Rxa2 {[%clk 0:01:24.7]} 22. Kh1
{[%clk 0:01:30.4]} 1-0

[Event "Early-Titled-Tuesday-Blitz-May-07-2024"]
[Site "Chess.com"]
[Date "2024.05.07"]
[Round "10"]
[White "masterofpuppets2"]
[Black "LeoWin2012"]
[Result "1-0"]
[WhiteElo "2476"]
[BlackElo "2332"]
[TimeControl "180+1"]
[EndTime "9:59:39 PDT"]
[Termination "masterofpuppets2 won by resignation"]

1. d4 {[%clk 0:03:00.9]} 1... Nf6 {[%clk 0:02:58.4]} 2. c4 {[%clk 0:03:00.2]}
2... e6 {[%clk 0:02:57.9]} 3. Nf3 {[%clk 0:03:00.6]} 3... d5 {[%clk 0:02:56.3]}
4. Nc3 {[%clk 0:03:00.7]} 4... c6 {[%clk 0:02:50.7]} 5. e3 {[%clk 0:03:00.2]}
5... Bd6 {[%clk 0:02:45.7]} 6. Bd3 {[%clk 0:03:00.4]} 6... Nbd7 {[%clk
0:02:45.2]} 7. e4 {[%clk 0:03:00.7]} 7... dxe4 {[%clk 0:02:42.6]} 8. Nxe4 {[%clk
0:03:01.6]} 8... Nxe4 {[%clk 0:02:42.7]} 9. Bxe4 {[%clk 0:03:02.5]} 9... Nf6
{[%clk 0:02:42.8]} 10. Bc2 {[%clk 0:03:01.4]} 10... O-O {[%clk 0:02:41.4]} 11.
O-O {[%clk 0:03:01.5]} 11... Re8 {[%clk 0:02:39.3]} 12. Qd3 {[%clk 0:02:57.8]}
12... c5 {[%clk 0:02:25.1]} 13. Bg5 {[%clk 0:02:56]} 13... cxd4 {[%clk
0:02:09.2]} 14. Nxd4 {[%clk 0:02:29]} 14... h6 {[%clk 0:02:04.6]} 15. Bxf6
{[%clk 0:02:24.2]} 15... Qxf6 {[%clk 0:02:03.5]} 16. Qh7+ {[%clk 0:02:24.2]}
16... Kf8 {[%clk 0:02:03.6]} 17. Nb5 {[%clk 0:02:24.5]} 17... Bb8 {[%clk
0:01:50.1]} 18. Nc3 {[%clk 0:02:18.4]} 18... a6 {[%clk 0:01:40.4]} 19. Rad1
{[%clk 0:02:13.7]} 19... b6 {[%clk 0:01:24.8]} 20. Be4 {[%clk 0:02:09.3]} 20...
Ra7 {[%clk 0:01:18]} 21. Bc6 {[%clk 0:02:08.9]} 21... Qe5 {[%clk 0:01:06.8]} 22.
Qh8+ {[%clk 0:02:05.5]} 22... Ke7 {[%clk 0:01:06.7]} 23. Qxe8+ {[%clk
0:02:05.4]} 23... Kf6 {[%clk 0:01:06.5]} 24. Ne4+ {[%clk 0:02:02.2]} 24... Kg6
{[%clk 0:01:05.7]} 25. f4 {[%clk 0:02:01.9]} 25... Qxb2 {[%clk 0:01:04.3]} 26.
Qxc8 {[%clk 0:02:00.6]} 26... Rc7 {[%clk 0:01:03.5]} 27. Qxb8 {[%clk 0:01:59.5]}
27... Rxc6 {[%clk 0:01:04.4]} 28. Qe5 {[%clk 0:01:58.5]} 28... Qxe5 {[%clk
0:01:01.5]} 29. fxe5 {[%clk 0:01:58.7]} 29... Rxc4 {[%clk 0:01:02.4]} 1-0

[Event "Early-Titled-Tuesday-Blitz-May-07-2024"]
[Site "Chess.com"]
[Date "2024.05.07"]
[Round "10"]
[White "Lily_Schirmbeck"]
[Black "dianamirza"]
[Result "0-1"]
[WhiteElo "1706"]
[BlackElo "1929"]
[TimeControl "180+1"]
[EndTime "9:59:53 PDT"]
[Termination "dianamirza won by resignation"]

1. c4 {[%clk 0:03:00.9]} 1... c5 {[%clk 0:02:49.2]} 2. Nf3 {[%clk 0:03:00.2]}
2... Nc6 {[%clk 0:02:50.1]} 3. g3 {[%clk 0:03:00.3]} 3... g6 {[%clk 0:02:51]} 4.
Bg2 {[%clk 0:02:59.9]} 4... Bg7 {[%clk 0:02:51.9]} 5. O-O {[%clk 0:03:00]} 5...
e6 {[%clk 0:02:52.8]} 6. Nc3 {[%clk 0:03:00]} 6... Nge7 {[%clk 0:02:52.2]} 7. d3
{[%clk 0:02:57.8]} 7... O-O {[%clk 0:02:52.7]} 8. e4 {[%clk 0:02:55.8]} 8... d5
{[%clk 0:02:52.7]} 9. exd5 {[%clk 0:02:54.8]} 9... exd5 {[%clk 0:02:53.6]} 10.
cxd5 {[%clk 0:02:55.1]} 10... Nxd5 {[%clk 0:02:54]} 11. d4 {[%clk 0:02:55.4]}
11... Nxc3 {[%clk 0:02:52]} 12. bxc3 {[%clk 0:02:55.2]} 12... cxd4 {[%clk
0:02:52.6]} 13. cxd4 {[%clk 0:02:55.5]} 13... Bg4 {[%clk 0:02:51.2]} 14. Be3
{[%clk 0:02:38.9]} 14... Bxf3 {[%clk 0:02:25.3]} 15. Bxf3 {[%clk 0:02:36.9]}
15... Nxd4 {[%clk 0:02:24.9]} 16. Bxd4 {[%clk 0:02:30]} 16... Qxd4 {[%clk
0:02:24.3]} 17. Qxd4 {[%clk 0:02:24.9]} 17... Bxd4 {[%clk 0:02:25.2]} 18. Rad1
{[%clk 0:02:24.4]} 18... Rfd8 {[%clk 0:02:22.5]} 19. Bxb7 {[%clk 0:02:22.9]}
19... Rab8 {[%clk 0:02:23.1]} 20. Bc6 {[%clk 0:02:11.5]} 20... Rb2 {[%clk
0:02:23]} 21. a4 {[%clk 0:02:09.3]} 21... Bxf2+ {[%clk 0:02:20.5]} 22. Kh1
{[%clk 0:02:04]} 22... Rxd1 {[%clk 0:02:16.7]} 23. Rxd1 {[%clk 0:02:04]} 23...
Bb6 {[%clk 0:02:14.3]} 24. Bb5 {[%clk 0:01:58.8]} 24... Rb4 {[%clk 0:01:59]} 25.
Rd2 {[%clk 0:01:41]} 25... Kg7 {[%clk 0:01:52.5]} 26. Kg2 {[%clk 0:01:40.2]}
26... Kf6 {[%clk 0:01:42.5]} 27. Re2 {[%clk 0:01:35.1]} 27... h5 {[%clk
0:01:39.9]} 28. Kf3 {[%clk 0:01:32.1]} 28... g5 {[%clk 0:01:38]} 29. Kg2 {[%clk
0:01:25.4]} 29... Bc5 {[%clk 0:01:33.5]} 30. Re4 {[%clk 0:01:16.8]} 30... Rxe4
{[%clk 0:01:32.2]} 0-1

[Event "Early-Titled-Tuesday-Blitz-May-07-2024"]
[Site "Chess.com"]
[Date "2024.05.07"]
[Round "10"]
[White "Blackwhite017"]
[Black "MarlonJodar"]
[Result "0-1"]
[WhiteElo "2124"]
[BlackElo "2279"]
[TimeControl "180+1"]
[EndTime "10:00:07 PDT"]
[Termination "MarlonJodar won on time"]

1. e4 {[%clk 0:03:00]} 1... e5 {[%clk 0:02:57.5]} 2. Nf3 {[%clk 0:02:59.1]} 2...
Nc6 {[%clk 0:02:55.3]} 3. Bb5 {[%clk 0:02:58.7]} 3... a6 {[%clk 0:02:55]} 4.
Bxc6 {[%clk 0:02:58.3]} 4... dxc6 {[%clk 0:02:55.4]} 5. O-O {[%clk 0:02:57.9]}
5... Bg4 {[%clk 0:02:55.5]} 6. h3 {[%clk 0:02:57.1]} 6... h5 {[%clk 0:02:55.4]}
7. d3 {[%clk 0:02:54.6]} 7... Qf6 {[%clk 0:02:55.2]} 8. Nbd2 {[%clk 0:02:47.7]}
8... g5 {[%clk 0:02:54.6]} 9. Nc4 {[%clk 0:02:28.6]} 9... Bxf3 {[%clk
0:02:52.8]} 10. Qxf3 {[%clk 0:02:26]} 10... Qxf3 {[%clk 0:02:53.2]} 11. gxf3
{[%clk 0:02:26.1]} 11... f6 {[%clk 0:02:53.4]} 12. h4 {[%clk 0:02:18.3]} 12...
gxh4 {[%clk 0:02:50]} 13. Kg2 {[%clk 0:02:07.8]} 13... Ne7 {[%clk 0:02:47.6]}
14. f4 {[%clk 0:02:00.2]} 14... Rg8+ {[%clk 0:02:42.9]} 15. Kh3 {[%clk
0:01:53.2]} 15... exf4 {[%clk 0:02:31.1]} 16. Bxf4 {[%clk 0:01:54.1]} 16... Rg4
{[%clk 0:02:30.9]} 17. Bh2 {[%clk 0:01:52.5]} 17... Ng6 {[%clk 0:02:04.5]} 0-1

[Event "Early-Titled-Tuesday-Blitz-May-07-2024"]
[Site "Chess.com"]
[Date "2024.05.07"]
[Round "10"]
[White "Burgsvik"]
[Black "VirtualCoach"]
[Result "1-0"]
[WhiteElo "2329"]
[BlackElo "2150"]
[TimeControl "180+1"]
[EndTime "10:00:20 PDT"]
[Termination "Burgsvik won by resignation"]

1. e4 {[%clk 0:03:00.9]} 1... c5 {[%clk 0:03:00]} 2. Nf3 {[%clk 0:03:00]} 2...
Nc6 {[%clk 0:02:59.8]} 3. d4 {[%clk 0:03:00.9]} 3... cxd4 {[%clk 0:02:59.4]} 4.
Nxd4 {[%clk 0:03:01.8]} 4... Nf6 {[%clk 0:02:59.6]} 5. Nc3 {[%clk 0:03:01.8]}
5... e5 {[%clk 0:03:00]} 6. Ndb5 {[%clk 0:03:01.9]} 6... d6 {[%clk 0:03:00.2]}
7. Bg5 {[%clk 0:03:00.8]} 7... a6 {[%clk 0:02:57.6]} 8. Na3 {[%clk 0:03:00.8]}
8... b5 {[%clk 0:02:57.5]} 9. Nd5 {[%clk 0:03:00.9]} 9... Be7 {[%clk 0:02:58.1]}
10. Bxf6 {[%clk 0:03:01.1]} 10... Bxf6 {[%clk 0:02:59]} 11. c4 {[%clk
0:03:01.6]} 11... b4 {[%clk 0:02:59]} 12. Nc2 {[%clk 0:03:01.5]} 12... Bg5
{[%clk 0:02:59.6]} 13. g3 {[%clk 0:03:01.3]} 13... O-O {[%clk 0:02:57.4]} 14.
Bg2 {[%clk 0:03:00.6]} 14... Rb8 {[%clk 0:02:56.4]} 15. b3 {[%clk 0:02:51.3]}
15... Kh8 {[%clk 0:02:48.5]} 16. O-O {[%clk 0:02:49.2]} 16... f5 {[%clk
0:02:47.8]} 17. f4 {[%clk 0:02:46.3]} 17... Bf6 {[%clk 0:02:44]} 18. Nxf6 {[%clk
0:02:43.6]} 18... Qxf6 {[%clk 0:02:44.9]} 19. exf5 {[%clk 0:02:42.5]} 19... Nd4
{[%clk 0:02:36.4]} 20. Nxd4 {[%clk 0:02:40.6]} 20... exd4 {[%clk 0:02:35.9]} 21.
g4 {[%clk 0:02:40.7]} 21... h5 {[%clk 0:02:18.4]} 22. h3 {[%clk 0:02:36.7]}
22... Bd7 {[%clk 0:02:09.3]} 23. Qd3 {[%clk 0:02:31.8]} 23... Rbe8 {[%clk
0:02:07.9]} 24. Rad1 {[%clk 0:02:29.2]} 24... Qh4 {[%clk 0:02:02.7]} 25. Rf3
{[%clk 0:02:18.3]} 25... Bc6 {[%clk 0:01:47.9]} 26. Rf2 {[%clk 0:02:07.3]} 26...
hxg4 {[%clk 0:00:49.3]} 27. Bxc6 {[%clk 0:02:03.9]} 27... Re3 {[%clk 0:00:48.9]}
28. Qxd4 {[%clk 0:01:57.3]} 28... Qg3+ {[%clk 0:00:44.4]} 29. Rg2 {[%clk
0:01:51.2]} 29... Qxh3 {[%clk 0:00:44.4]} 30. Rh2 {[%clk 0:01:48]} 1-0

[Event "Early-Titled-Tuesday-Blitz-May-07-2024"]
[Site "Chess.com"]
[Date "2024.05.07"]
[Round "10"]
[White "FREDERICKtheMATE"]
[Black "Nadtkins"]
[Result "1-0"]
[WhiteElo "2697"]
[BlackElo "2536"]
[TimeControl "180+1"]
[EndTime "10:00:31 PDT"]
[Termination "FREDERICKtheMATE won by resignation"]

1. d4 {[%clk 0:03:00.9]} 1... Nf6 {[%clk 0:02:59.8]} 2. c4 {[%clk 0:03:01.4]}
2... d6 {[%clk 0:03:00.4]} 3. Nf3 {[%clk 0:03:01.1]} 3... g6 {[%clk 0:02:58.5]}
4. Nc3 {[%clk 0:03:01.6]} 4... Bf5 {[%clk 0:02:59]} 5. Qb3 {[%clk 0:03:00.6]}
5... b6 {[%clk 0:02:56.7]} 6. g3 {[%clk 0:03:00.7]} 6... Nc6 {[%clk 0:02:57.1]}
7. Bg2 {[%clk 0:02:59.7]} 7... Bg7 {[%clk 0:02:57.5]} 8. O-O {[%clk 0:02:53.5]}
8... O-O {[%clk 0:02:57.1]} 9. Rd1 {[%clk 0:02:52.6]} 9... Na5 {[%clk
0:02:40.2]} 10. Qa4 {[%clk 0:02:45.1]} 10... Bd7 {[%clk 0:02:34.8]} 11. Qc2
{[%clk 0:02:43.7]} 11... Nxc4 {[%clk 0:02:27.4]} 12. Nd2 {[%clk 0:02:43.5]}
12... Nxd2 {[%clk 0:02:20.9]} 13. Bxa8 {[%clk 0:02:43.1]} 13... Qxa8 {[%clk
0:02:13.2]} 14. Bxd2 {[%clk 0:02:41.2]} 14... c5 {[%clk 0:02:05.8]} 15. dxc5
{[%clk 0:02:38.2]} 15... bxc5 {[%clk 0:02:03.9]} 16. Bg5 {[%clk 0:02:37.2]}
16... Rb8 {[%clk 0:01:59.3]} 17. Bxf6 {[%clk 0:02:27.9]} 17... Bxf6 {[%clk
0:01:54.6]} 18. b3 {[%clk 0:02:28.3]} 18... Bc6 {[%clk 0:01:48.1]} 19. Rac1
{[%clk 0:02:24.8]} 19... h5 {[%clk 0:01:42.1]} 20. Qd3 {[%clk 0:02:17.5]} 20...
Rb4 {[%clk 0:01:36.1]} 21. Nd5 {[%clk 0:02:13.3]} 21... Bxd5 {[%clk 0:01:13]}
22. Qxd5 {[%clk 0:02:14.2]} 22... Qxd5 {[%clk 0:01:12.6]} 23. Rxd5 {[%clk
0:02:15.1]} 23... Bd4 {[%clk 0:01:09.8]} 24. e3 {[%clk 0:02:11.7]} 24... Bb2
{[%clk 0:01:03.4]} 25. Rc4 {[%clk 0:02:10.4]} 25... Rb7 {[%clk 0:01:02.3]} 26.
Rd2 {[%clk 0:01:57.9]} 26... Ba3 {[%clk 0:00:57]} 27. Ra4 {[%clk 0:01:57.7]}
27... Bb4 {[%clk 0:00:43.6]} 28. Rc2 {[%clk 0:01:56.4]} 28... d5 {[%clk
0:00:16.1]} 29. a3 {[%clk 0:01:56.1]} 29... Be1 {[%clk 0:00:16]} 30. Kf1 {[%clk
0:01:55.8]} 1-0

[Event "Early-Titled-Tuesday-Blitz-May-07-2024"]
[Site "Chess.com"]
[Date "2024.05.07"]
[Round "10"]
[White "Iskusnyh"]
[Black "Arlo2024"]
[Result "1-0"]
[WhiteElo "2584"]
[BlackElo "2394"]
[TimeControl "180+1"]
[EndTime "10:00:31 PDT"]
[Termination "Iskusnyh won by resignation"]

1. d4 {[%clk 0:03:00.9]} 1... Nf6 {[%clk 0:02:59.6]} 2. c4 {[%clk 0:03:00.1]}
2... c5 {[%clk 0:03:00]} 3. d5 {[%clk 0:02:59.3]} 3... b5 {[%clk 0:03:00.7]} 4.
cxb5 {[%clk 0:02:57]} 4... a6 {[%clk 0:03:01.4]} 5. e3 {[%clk 0:02:55.6]} 5...
g6 {[%clk 0:03:01.4]} 6. Nc3 {[%clk 0:02:49.3]} 6... Bg7 {[%clk 0:03:01.8]} 7.
a4 {[%clk 0:02:46.4]} 7... O-O {[%clk 0:03:02.4]} 8. e4 {[%clk 0:02:46.2]} 8...
Bb7 {[%clk 0:03:02.9]} 9. Bg5 {[%clk 0:02:38.2]} 9... h6 {[%clk 0:02:55]} 10.
Bxf6 {[%clk 0:02:35]} 10... Bxf6 {[%clk 0:02:41.9]} 11. Nf3 {[%clk 0:02:35.9]}
11... e6 {[%clk 0:02:27.6]} 12. Bc4 {[%clk 0:02:31.8]} 12... axb5 {[%clk
0:02:19.3]} 13. Nxb5 {[%clk 0:01:59.1]} 13... Bxb2 {[%clk 0:02:04]} 14. Rb1
{[%clk 0:01:56.6]} 14... Qa5+ {[%clk 0:01:58.2]} 15. Nd2 {[%clk 0:01:47.7]}
15... Bc3 {[%clk 0:01:45.4]} 16. Nxc3 {[%clk 0:01:45]} 16... Qxc3 {[%clk
0:01:46.3]} 17. Rxb7 {[%clk 0:01:44.3]} 17... exd5 {[%clk 0:01:36.3]} 18. Bxd5
{[%clk 0:01:41.9]} 18... Nc6 {[%clk 0:01:36]} 19. O-O {[%clk 0:01:36.7]} 19...
Nd4 {[%clk 0:01:30]} 20. Nf3 {[%clk 0:01:35.2]} 20... Nc2 {[%clk 0:01:01.6]} 21.
Qc1 {[%clk 0:01:24.5]} 21... c4 {[%clk 0:00:47.9]} 22. Qxh6 {[%clk 0:01:22.9]}
22... Qg7 {[%clk 0:00:44.1]} 23. Qxg7+ {[%clk 0:01:21.3]} 23... Kxg7 {[%clk
0:00:45]} 24. Bxc4 {[%clk 0:01:20]} 1-0

[Event "Early-Titled-Tuesday-Blitz-May-07-2024"]
[Site "Chess.com"]
[Date "2024.05.07"]
[Round "10"]
[White "tantaan"]
[Black "DarZay"]
[Result "1-0"]
[WhiteElo "2488"]
[BlackElo "2339"]
[TimeControl "180+1"]
[EndTime "10:00:35 PDT"]
[Termination "tantaan won by resignation"]

1. e4 {[%clk 0:03:00.9]} 1... c5 {[%clk 0:02:57]} 2. Nc3 {[%clk 0:03:00.5]} 2...
Nc6 {[%clk 0:02:55.8]} 3. Bb5 {[%clk 0:03:00]} 3... g6 {[%clk 0:02:54.9]} 4.
Bxc6 {[%clk 0:02:59.9]} 4... dxc6 {[%clk 0:02:54.4]} 5. d3 {[%clk 0:03:00.4]}
5... Bg7 {[%clk 0:02:53.9]} 6. f4 {[%clk 0:03:00.4]} 6... e5 {[%clk 0:02:51]} 7.
Nf3 {[%clk 0:02:55.5]} 7... exf4 {[%clk 0:02:50.1]} 8. Bxf4 {[%clk 0:02:56.4]}
8... Nf6 {[%clk 0:02:28.7]} 9. O-O {[%clk 0:02:55.1]} 9... O-O {[%clk
0:02:26.8]} 10. h3 {[%clk 0:02:41.9]} 10... h6 {[%clk 0:02:25.3]} 11. Qd2 {[%clk
0:02:39.8]} 11... Kh7 {[%clk 0:02:22.8]} 12. Rae1 {[%clk 0:02:37.2]} 12... Be6
{[%clk 0:02:16.4]} 13. Nd1 {[%clk 0:02:29.8]} 13... Nh5 {[%clk 0:02:12.1]} 14.
Be3 {[%clk 0:02:25]} 14... Ng3 {[%clk 0:02:08.1]} 15. Rf2 {[%clk 0:02:25]} 15...
f5 {[%clk 0:02:00.1]} 16. Bxc5 {[%clk 0:02:16.4]} 16... Rf7 {[%clk 0:01:27.8]}
17. exf5 {[%clk 0:02:01.4]} 17... Bxf5 {[%clk 0:01:26.7]} 18. Ne3 {[%clk
0:02:01.5]} 18... Bxb2 {[%clk 0:01:06.9]} 19. c3 {[%clk 0:01:49.2]} 19... Qxd3
{[%clk 0:01:05.3]} 20. Qxb2 {[%clk 0:01:48.9]} 20... Ne4 {[%clk 0:01:04.8]} 21.
Ne5 {[%clk 0:01:42.2]} 21... Qxc3 {[%clk 0:00:57.2]} 22. Qxc3 {[%clk 0:01:40.3]}
22... Nxc3 {[%clk 0:00:55.9]} 23. Nxf7 {[%clk 0:01:40.5]} 23... Ne4 {[%clk
0:00:56.1]} 24. Nxf5 {[%clk 0:01:34.6]} 24... Nxf2 {[%clk 0:00:55]} 25. Kxf2
{[%clk 0:01:28.9]} 25... gxf5 {[%clk 0:00:55.1]} 26. Re7 {[%clk 0:01:28.9]}
26... Kg6 {[%clk 0:00:54.8]} 27. Rxb7 {[%clk 0:01:28.1]} 27... Re8 {[%clk
0:00:52.6]} 28. Rxa7 {[%clk 0:01:25.3]} 28... Re4 {[%clk 0:00:51.9]} 29. a4
{[%clk 0:01:21.6]} 29... Rc4 {[%clk 0:00:49.3]} 30. Ne5+ {[%clk 0:01:19.2]} 1-0

[Event "Early-Titled-Tuesday-Blitz-May-07-2024"]
[Site "Chess.com"]
[Date "2024.05.07"]
[Round "10"]
[White "InitiatingASC"]
[Black "ChainedDowntohell"]
[Result "0-1"]
[WhiteElo "2423"]
[BlackElo "2597"]
[TimeControl "180+1"]
[EndTime "10:00:36 PDT"]
[Termination "ChainedDowntohell won by resignation"]

1. d4 {[%clk 0:03:00.9]} 1... Nf6 {[%clk 0:02:59.8]} 2. c4 {[%clk 0:03:01.1]}
2... e6 {[%clk 0:02:57.9]} 3. Nc3 {[%clk 0:03:00.8]} 3... Bb4 {[%clk 0:02:57.5]}
4. e3 {[%clk 0:02:59.3]} 4... c5 {[%clk 0:02:55.8]} 5. Bd3 {[%clk 0:02:59.5]}
5... b6 {[%clk 0:02:54.4]} 6. Ne2 {[%clk 0:02:53.1]} 6... Bb7 {[%clk 0:02:53.9]}
7. O-O {[%clk 0:02:52.6]} 7... cxd4 {[%clk 0:02:53]} 8. exd4 {[%clk 0:02:50.9]}
8... O-O {[%clk 0:02:52.4]} 9. a3 {[%clk 0:02:50.1]} 9... Bxc3 {[%clk 0:02:47]}
10. Nxc3 {[%clk 0:02:49.2]} 10... Nc6 {[%clk 0:02:46.8]} 11. Bg5 {[%clk
0:02:45.5]} 11... h6 {[%clk 0:02:44.5]} 12. Be3 {[%clk 0:02:40.1]} 12... d5
{[%clk 0:02:43.1]} 13. Rc1 {[%clk 0:02:27.8]} 13... dxc4 {[%clk 0:02:39.1]} 14.
Bxc4 {[%clk 0:02:28.1]} 14... Ne7 {[%clk 0:02:37.9]} 15. Qd3 {[%clk 0:02:08]}
15... Qd7 {[%clk 0:02:23]} 16. Rfd1 {[%clk 0:02:02.7]} 16... Rfd8 {[%clk
0:02:21.5]} 17. Ba2 {[%clk 0:02:01.3]} 17... Nf5 {[%clk 0:02:18.8]} 18. Bb1
{[%clk 0:01:54.9]} 18... Rac8 {[%clk 0:02:12]} 19. Bf4 {[%clk 0:01:28.5]} 19...
Qxd4 {[%clk 0:01:58.8]} 20. Qxd4 {[%clk 0:00:52.8]} 20... Nxd4 {[%clk
0:01:58.4]} 21. Be5 {[%clk 0:00:50.6]} 21... Nb3 {[%clk 0:01:38]} 22. Rxd8+
{[%clk 0:00:46.1]} 22... Rxd8 {[%clk 0:01:38.9]} 23. Rd1 {[%clk 0:00:43.3]}
23... Rxd1+ {[%clk 0:01:36.4]} 24. Nxd1 {[%clk 0:00:43.6]} 24... Ne4 {[%clk
0:01:25.3]} 25. f3 {[%clk 0:00:37.6]} 25... Ned2 {[%clk 0:01:22.3]} 26. Ne3
{[%clk 0:00:34]} 26... Nxb1 {[%clk 0:01:21.5]} 0-1

[Event "Early-Titled-Tuesday-Blitz-May-07-2024"]
[Site "Chess.com"]
[Date "2024.05.07"]
[Round "10"]
[White "ccccvhhhj"]
[Black "Arhan_Anand"]
[Result "1/2-1/2"]
[WhiteElo "2499"]
[BlackElo "2615"]
[TimeControl "180+1"]
[EndTime "10:00:53 PDT"]
[Termination "Game drawn by repetition"]

1. e4 {[%clk 0:03:00.9]} 1... c5 {[%clk 0:03:00]} 2. Nf3 {[%clk 0:03:01.2]} 2...
g6 {[%clk 0:03:00.4]} 3. d4 {[%clk 0:03:01.5]} 3... cxd4 {[%clk 0:03:01.3]} 4.
Nxd4 {[%clk 0:03:02.4]} 4... Bg7 {[%clk 0:03:01.6]} 5. Nc3 {[%clk 0:03:03.1]}
5... Nc6 {[%clk 0:03:01.8]} 6. Be3 {[%clk 0:03:03.8]} 6... d6 {[%clk 0:02:58]}
7. f3 {[%clk 0:02:59.4]} 7... Nf6 {[%clk 0:02:57.8]} 8. Qd2 {[%clk 0:03:00]}
8... O-O {[%clk 0:02:55]} 9. g4 {[%clk 0:03:00.6]} 9... Be6 {[%clk 0:02:52.2]}
10. Nxe6 {[%clk 0:02:58.9]} 10... fxe6 {[%clk 0:02:52]} 11. Bc4 {[%clk
0:02:47.7]} 11... Qd7 {[%clk 0:02:41.5]} 12. O-O-O {[%clk 0:02:47.4]} 12... Rac8
{[%clk 0:02:39.3]} 13. h4 {[%clk 0:02:43.8]} 13... Ne5 {[%clk 0:02:37]} 14. Be2
{[%clk 0:02:44.1]} 14... Nc4 {[%clk 0:02:37.1]} 15. Bxc4 {[%clk 0:02:41.4]}
15... Rxc4 {[%clk 0:02:38]} 16. h5 {[%clk 0:02:40.9]} 16... Rfc8 {[%clk
0:02:36.1]} 17. hxg6 {[%clk 0:02:40.8]} 17... hxg6 {[%clk 0:02:37]} 18. Bh6
{[%clk 0:02:37.4]} 18... Bh8 {[%clk 0:02:34.3]} 19. Qg5 {[%clk 0:02:21.3]} 19...
Kf7 {[%clk 0:02:34.4]} 20. Rd3 {[%clk 0:01:40.7]} 20... R8c5 {[%clk 0:02:26.4]}
21. Qe3 {[%clk 0:01:37.2]} 21... Ng8 {[%clk 0:02:21.1]} 22. Bg5 {[%clk
0:01:28.4]} 22... Bxc3 {[%clk 0:02:17.8]} 23. Rxc3 {[%clk 0:01:13.8]} 23... Rxc3
{[%clk 0:02:17.9]} 24. bxc3 {[%clk 0:01:14.7]} 24... Qa4 {[%clk 0:02:03.7]} 25.
Rh7+ {[%clk 0:01:10]} 25... Ke8 {[%clk 0:02:03.4]} 26. Rh8 {[%clk 0:01:02]}
26... Kf7 {[%clk 0:01:56.4]} 27. Rh7+ {[%clk 0:01:01.6]} 27... Ke8 {[%clk
0:01:56.5]} 28. Rh8 {[%clk 0:01:02.1]} 28... Qa3+ {[%clk 0:01:46.6]} 29. Kd2
{[%clk 0:01:00.6]} 29... Kf7 {[%clk 0:01:46]} 30. Rh7+ {[%clk 0:00:36.4]} 30...
Ke8 {[%clk 0:01:45.8]} 31. Rh8 {[%clk 0:00:29.4]} 31... Kf7 {[%clk 0:01:38.9]}
32. Rh7+ {[%clk 0:00:29.6]} 32... Ke8 {[%clk 0:01:39]} 33. Rh8 {[%clk
0:00:20.5]} 1/2-1/2

[Event "Early-Titled-Tuesday-Blitz-May-07-2024"]
[Site "Chess.com"]
[Date "2024.05.07"]
[Round "10"]
[White "CristianS27"]
[Black "MaxLeto"]
[Result "0-1"]
[WhiteElo "2530"]
[BlackElo "2437"]
[TimeControl "180+1"]
[EndTime "10:00:56 PDT"]
[Termination "MaxLeto won by resignation"]

1. e4 {[%clk 0:02:55.4]} 1... c5 {[%clk 0:02:59.5]} 2. Nf3 {[%clk 0:02:54.6]}
2... d6 {[%clk 0:02:59.9]} 3. d4 {[%clk 0:02:54.4]} 3... cxd4 {[%clk 0:03:00.8]}
4. Nxd4 {[%clk 0:02:55.3]} 4... Nf6 {[%clk 0:03:01.7]} 5. Nc3 {[%clk 0:02:55.9]}
5... a6 {[%clk 0:03:02.6]} 6. Be3 {[%clk 0:02:56.4]} 6... Ng4 {[%clk 0:03:02.6]}
7. Bc1 {[%clk 0:02:56]} 7... Nf6 {[%clk 0:03:02.6]} 8. Be2 {[%clk 0:02:56.5]}
8... e6 {[%clk 0:03:02.6]} 9. O-O {[%clk 0:02:44.7]} 9... Be7 {[%clk 0:03:02.4]}
10. Be3 {[%clk 0:02:44.2]} 10... O-O {[%clk 0:03:02.6]} 11. f4 {[%clk
0:02:41.4]} 11... Qc7 {[%clk 0:03:02.6]} 12. Qe1 {[%clk 0:02:39.8]} 12... b5
{[%clk 0:03:02.5]} 13. a3 {[%clk 0:02:37.7]} 13... Bb7 {[%clk 0:03:02.9]} 14.
Bd3 {[%clk 0:02:36.9]} 14... Nbd7 {[%clk 0:03:03.4]} 15. Kh1 {[%clk 0:02:22.2]}
15... Nc5 {[%clk 0:02:57.9]} 16. Bd2 {[%clk 0:02:15.8]} 16... Rfe8 {[%clk
0:02:43.9]} 17. e5 {[%clk 0:01:55.3]} 17... Nfd7 {[%clk 0:02:37.5]} 18. exd6
{[%clk 0:01:40.5]} 18... Bxd6 {[%clk 0:02:30.7]} 19. Be2 {[%clk 0:01:21.4]}
19... Nf6 {[%clk 0:02:23.4]} 20. Bf3 {[%clk 0:01:18.8]} 20... Rad8 {[%clk
0:02:17]} 21. Be3 {[%clk 0:01:15.8]} 21... e5 {[%clk 0:01:57]} 22. fxe5 {[%clk
0:01:15]} 22... Bxe5 {[%clk 0:01:57.9]} 23. Qf2 {[%clk 0:00:59.5]} 23... Bxf3
{[%clk 0:01:49.8]} 24. Nxf3 {[%clk 0:01:00.4]} 24... Ng4 {[%clk 0:01:47.8]} 25.
Bxc5 {[%clk 0:00:44.9]} 25... Nxf2+ {[%clk 0:01:46.2]} 26. Bxf2 {[%clk
0:00:45.8]} 26... Bxc3 {[%clk 0:01:43.7]} 27. Bg3 {[%clk 0:00:45.8]} 27... Be5
{[%clk 0:01:29.5]} 28. Nxe5 {[%clk 0:00:45.3]} 28... Rxe5 {[%clk 0:01:30.4]} 29.
Rf5 {[%clk 0:00:37.6]} 29... Rde8 {[%clk 0:01:23.1]} 30. h3 {[%clk 0:00:34.5]}
30... Qc5 {[%clk 0:01:18.1]} 31. Bxe5 {[%clk 0:00:33]} 31... Rxe5 {[%clk
0:01:19]} 32. Rf2 {[%clk 0:00:32.5]} 32... Qxf2 {[%clk 0:01:18.8]} 0-1